[Event "Titled Tuesday Blitz September 20 Late 2022"]
[White "Sernecki, Franciszek"]
[Black "Kamsky, Gata"]
[WhiteFideId "1169297"]
[BlackFideId "2000024"]
[WhiteElo "2168"]
[BlackElo "2666"]
[Result "0-1"]
[Round "01"]
[TimeControl "180+1"]
[Date "2022.09.20"]
[WhiteClock "0:00:07"]
[BlackClock "0:01:02"]

1. c4 {[%clk 0:02:58]}  Nf6 {[%clk 0:02:57]} 2. Nc3 {[%clk 0:02:58]}  e6 {[%clk 0:02:55]} 3. e4 {[%clk 0:02:59]}  d6 {[%clk 0:02:44]} 4. g3 {[%clk 0:02:58]}  g6 {[%clk 0:02:43]} 5. Bg2 {[%clk 0:02:59]}  c5 {[%clk 0:02:42]} 6. Nge2 {[%clk 0:02:59]}  Bg7 {[%clk 0:02:41]} 7. O-O {[%clk 0:03:00]}  Nc6 {[%clk 0:02:42]} 8. a3 {[%clk 0:02:57]}  O-O {[%clk 0:02:41]} 9. Rb1 {[%clk 0:02:58]}  Nd7 {[%clk 0:02:33]} 10. b4 {[%clk 0:02:57]}  Rb8 {[%clk 0:02:29]} 11. d3 {[%clk 0:02:56]}  b6 {[%clk 0:02:28]} 12. Be3 {[%clk 0:02:53]}  Bb7 {[%clk 0:02:17]} 13. d4 {[%clk 0:02:49]}  cxd4 {[%clk 0:02:16]} 14. Nxd4 {[%clk 0:02:50]}  Nde5 {[%clk 0:02:13]} 15. Nxc6 {[%clk 0:02:21]}  Bxc6 {[%clk 0:02:12]} 16. Qb3 {[%clk 0:02:20]}  Rc8 {[%clk 0:02:07]} 17. Ne2 {[%clk 0:02:14]}  Bb7 {[%clk 0:01:58]} 18. Rbc1 {[%clk 0:02:13]}  Ba6 {[%clk 0:01:55]} 19. b5 {[%clk 0:02:06]}  Bb7 {[%clk 0:01:55]} 20. Rfd1 {[%clk 0:02:03]}  Qc7 {[%clk 0:01:55]} 21. Bd4 {[%clk 0:02:00]}  Rfd8 {[%clk 0:01:47]} 22. Bxe5 {[%clk 0:01:57]}  dxe5 {[%clk 0:01:41]} 23. Rxd8+ {[%clk 0:01:50]}  Rxd8 {[%clk 0:01:39]} 24. Qc3 {[%clk 0:01:42]}  Bf8 {[%clk 0:01:38]} 25. a4 {[%clk 0:01:34]}  Bc5 {[%clk 0:01:38]} 26. Kf1 {[%clk 0:01:29]}  Qd6 {[%clk 0:01:37]} 27. Bf3 {[%clk 0:01:20]}  a5 {[%clk 0:01:26]} 28. Kg2 {[%clk 0:00:48]}  h5 {[%clk 0:01:25]} 29. h4 {[%clk 0:00:47]}  Kg7 {[%clk 0:01:22]} 30. Ng1 {[%clk 0:00:43]}  Qd2 {[%clk 0:01:14]} 31. Qxe5+ {[%clk 0:00:15]}  f6 {[%clk 0:01:14]} 32. Qxe6 {[%clk 0:00:16]}  Qxc1 {[%clk 0:01:09]} 33. e5 {[%clk 0:00:10]}  Bxf3+ {[%clk 0:01:05]} 34. Nxf3 {[%clk 0:00:11]}  Rf8 {[%clk 0:01:04]} 35. exf6+ {[%clk 0:00:07]}  Rxf6 {[%clk 0:01:03]} 36. Qe7+ {[%clk 0:00:07]}  Bxe7 {[%clk 0:01:02]} 0-1


[Site "https://www.chess.com"]

[Event "Titled Tuesday Blitz September 20 Late 2022"]
[White "Sjugirov, Sanan"]
[Black "Miszler, Levente"]
[WhiteFideId "4189302"]
[BlackFideId "763276"]
[WhiteElo "2609"]
[BlackElo "1966"]
[Result "1-0"]
[Round "01"]
[TimeControl "180+1"]
[Date "2022.09.20"]
[WhiteClock "0:01:04"]
[BlackClock "0:00:04"]

1. e4 {[%clk 0:03:00]}  e6 {[%clk 0:02:59]} 2. d4 {[%clk 0:03:00]}  d5 {[%clk 0:02:59]} 3. Nd2 {[%clk 0:03:00]}  f5 {[%clk 0:02:58]} 4. exf5 {[%clk 0:02:58]}  exf5 {[%clk 0:02:59]} 5. Ngf3 {[%clk 0:02:57]}  Nf6 {[%clk 0:02:59]} 6. Bd3 {[%clk 0:02:56]}  Bd6 {[%clk 0:02:59]} 7. O-O {[%clk 0:02:57]}  O-O {[%clk 0:02:59]} 8. c4 {[%clk 0:02:47]}  c6 {[%clk 0:02:59]} 9. Ne5 {[%clk 0:02:44]}  Ng4 {[%clk 0:02:18]} 10. Ndf3 {[%clk 0:02:41]}  Nd7 {[%clk 0:02:16]} 11. cxd5 {[%clk 0:02:37]}  Ndxe5 {[%clk 0:02:01]} 12. dxe5 {[%clk 0:02:37]}  Nxe5 {[%clk 0:02:01]} 13. Nxe5 {[%clk 0:02:34]}  Bxe5 {[%clk 0:02:02]} 14. dxc6 {[%clk 0:02:34]}  bxc6 {[%clk 0:01:58]} 15. Re1 {[%clk 0:02:31]}  Qc7 {[%clk 0:01:53]} 16. h3 {[%clk 0:02:24]}  Bb7 {[%clk 0:01:47]} 17. Qb3+ {[%clk 0:02:15]}  Kh8 {[%clk 0:01:44]} 18. Rxe5 {[%clk 0:02:06]}  Qxe5 {[%clk 0:01:44]} 19. Qxb7 {[%clk 0:02:06]}  Qe1+ {[%clk 0:01:40]} 20. Bf1 {[%clk 0:02:05]}  Rad8 {[%clk 0:01:32]} 21. Bh6 {[%clk 0:01:59]}  Qe5 {[%clk 0:01:24]} 22. Re1 {[%clk 0:01:58]}  Qf6 {[%clk 0:01:11]} 23. Re6 {[%clk 0:01:55]}  Rf7 {[%clk 0:01:03]} 24. Rxf6 {[%clk 0:01:33]}  Rxb7 {[%clk 0:01:02]} 25. Bg5 {[%clk 0:01:34]}  Rc8 {[%clk 0:00:45]} 26. Rxf5 {[%clk 0:01:31]}  Rxb2 {[%clk 0:00:45]} 27. Bc4 {[%clk 0:01:27]}  h6 {[%clk 0:00:40]} 28. Be3 {[%clk 0:01:27]}  Rc2 {[%clk 0:00:26]} 29. Bb3 {[%clk 0:01:26]}  Rb2 {[%clk 0:00:26]} 30. Bxa7 {[%clk 0:01:20]}  Rd8 {[%clk 0:00:20]} 31. Bc5 {[%clk 0:01:14]}  Re2 {[%clk 0:00:17]} 32. Rf8+ {[%clk 0:01:11]}  Rxf8 {[%clk 0:00:16]} 33. Bxf8 {[%clk 0:01:12]}  Re1+ {[%clk 0:00:15]} 34. Kh2 {[%clk 0:01:12]}  Rc1 {[%clk 0:00:15]} 35. Ba3 {[%clk 0:01:06]}  Re1 {[%clk 0:00:09]} 36. Bb4 {[%clk 0:01:05]}  Rc1 {[%clk 0:00:08]} 37. Bd2 {[%clk 0:01:05]}  Rb1 {[%clk 0:00:08]} 38. Be3 {[%clk 0:01:04]}  Rb2 {[%clk 0:00:07]} 39. Kg3 {[%clk 0:01:04]}  Kh7 {[%clk 0:00:05]} 40. Kf3 {[%clk 0:01:04]}  Kg6 {[%clk 0:00:05]} 41. Ke4 {[%clk 0:01:04]}  Kf6 {[%clk 0:00:04]} 42. Bd4+ {[%clk 0:01:04]} 1-0


[Site "https://www.chess.com"]

[Event "Titled Tuesday Blitz September 20 Late 2022"]
[White "Svane, Rasmus"]
[Black "Lopez Gracia, Fernando"]
[WhiteFideId "4657101"]
[BlackFideId "2207184"]
[WhiteElo "2674"]
[BlackElo "2521"]
[Result "1-0"]
[Round "01"]
[TimeControl "180+1"]
[Date "2022.09.20"]
[WhiteClock "0:00:29"]
[BlackClock "0:01:15"]

1. Nf3 {[%clk 0:03:00]}  d5 {[%clk 0:02:59]} 2. g3 {[%clk 0:02:59]}  Nd7 {[%clk 0:03:00]} 3. d4 {[%clk 0:02:58]}  Nb6 {[%clk 0:02:59]} 4. Nc3 {[%clk 0:02:58]}  Bf5 {[%clk 0:02:58]} 5. Nh4 {[%clk 0:02:58]}  Bg4 {[%clk 0:02:55]} 6. h3 {[%clk 0:02:49]}  Bh5 {[%clk 0:02:54]} 7. Qd3 {[%clk 0:02:41]}  e6 {[%clk 0:02:50]} 8. e4 {[%clk 0:02:41]}  Be7 {[%clk 0:02:47]} 9. exd5 {[%clk 0:02:38]}  exd5 {[%clk 0:02:45]} 10. Nf5 {[%clk 0:02:36]}  Bf6 {[%clk 0:02:44]} 11. Bf4 {[%clk 0:02:30]}  Bg6 {[%clk 0:02:35]} 12. Nb5 {[%clk 0:02:21]}  Rc8 {[%clk 0:02:31]} 13. Nxa7 {[%clk 0:02:16]}  Bxf5 {[%clk 0:02:21]} 14. Qxf5 {[%clk 0:02:12]}  Ne7 {[%clk 0:02:22]} 15. Qd3 {[%clk 0:02:06]}  Rb8 {[%clk 0:02:21]} 16. Nb5 {[%clk 0:02:04]}  Na8 {[%clk 0:02:21]} 17. Bg2 {[%clk 0:01:59]}  O-O {[%clk 0:02:20]} 18. O-O {[%clk 0:01:59]}  Rc8 {[%clk 0:02:20]} 19. Rfe1 {[%clk 0:01:53]}  c6 {[%clk 0:02:20]} 20. Nd6 {[%clk 0:01:48]}  Rc7 {[%clk 0:02:20]} 21. Nf5 {[%clk 0:01:37]}  Rd7 {[%clk 0:02:20]} 22. c3 {[%clk 0:01:35]}  Nb6 {[%clk 0:02:16]} 23. Re2 {[%clk 0:01:33]}  Nxf5 {[%clk 0:02:14]} 24. Qxf5 {[%clk 0:01:33]}  Nc4 {[%clk 0:02:14]} 25. Rae1 {[%clk 0:01:31]}  g6 {[%clk 0:02:11]} 26. Qd3 {[%clk 0:01:30]}  Qa8 {[%clk 0:02:09]} 27. b3 {[%clk 0:01:29]}  Nd6 {[%clk 0:02:09]} 28. h4 {[%clk 0:01:29]}  Qa6 {[%clk 0:02:07]} 29. Qf3 {[%clk 0:01:16]}  Bg7 {[%clk 0:01:58]} 30. h5 {[%clk 0:01:13]}  Ne4 {[%clk 0:01:51]} 31. h6 {[%clk 0:01:07]}  Bh8 {[%clk 0:01:49]} 32. Qe3 {[%clk 0:01:03]}  Bf6 {[%clk 0:01:42]} 33. f3 {[%clk 0:01:01]}  Nd6 {[%clk 0:01:39]} 34. Bg5 {[%clk 0:00:55]}  Nf5 {[%clk 0:01:38]} 35. Qf4 {[%clk 0:00:55]}  Bxg5 {[%clk 0:01:35]} 36. Qxg5 {[%clk 0:00:56]}  f6 {[%clk 0:01:34]} 37. Qf4 {[%clk 0:00:56]}  Qd3 {[%clk 0:01:29]} 38. Bh3 {[%clk 0:00:53]}  Qxc3 {[%clk 0:01:27]} 39. Bxf5 {[%clk 0:00:53]}  gxf5 {[%clk 0:01:28]} 40. Kg2 {[%clk 0:00:36]}  Qb4 {[%clk 0:01:27]} 41. Qxf5 {[%clk 0:00:35]}  Rdf7 {[%clk 0:01:24]} 42. Qf4 {[%clk 0:00:33]}  c5 {[%clk 0:01:18]} 43. dxc5 {[%clk 0:00:32]}  Qxc5 {[%clk 0:01:19]} 44. Re8 {[%clk 0:00:31]}  Qc2+ {[%clk 0:01:15]} 45. R1e2 {[%clk 0:00:30]}  Qc6 {[%clk 0:01:14]} 46. Qg4+ {[%clk 0:00:29]}  Kh8 {[%clk 0:01:14]} 47. Rxf8+ {[%clk 0:00:28]}  Rxf8 {[%clk 0:01:15]} 48. Qg7# {[%clk 0:00:29]} 1-0


[Site "https://www.chess.com"]

[Event "Titled Tuesday Blitz September 20 Late 2022"]
[White "Szalay, Karoly"]
[Black "Martinez Alcantara, Jose Eduardo"]
[WhiteFideId "2600544"]
[BlackFideId "3805662"]
[WhiteElo "2534"]
[BlackElo "2703"]
[Result "0-1"]
[Round "01"]
[TimeControl "180+1"]
[Date "2022.09.20"]
[WhiteClock "0:00:14"]
[BlackClock "0:00:51"]

1. e4 {[%clk 0:03:00]}  c5 {[%clk 0:02:59]} 2. Nf3 {[%clk 0:03:01]}  d6 {[%clk 0:02:59]} 3. d4 {[%clk 0:03:01]}  cxd4 {[%clk 0:03:00]} 4. Nxd4 {[%clk 0:03:01]}  Nf6 {[%clk 0:03:01]} 5. Nc3 {[%clk 0:03:01]}  Nc6 {[%clk 0:03:02]} 6. Bg5 {[%clk 0:03:01]}  e6 {[%clk 0:03:02]} 7. f3 {[%clk 0:03:01]}  h6 {[%clk 0:02:57]} 8. Be3 {[%clk 0:03:00]}  h5 {[%clk 0:02:54]} 9. Bg5 {[%clk 0:02:57]}  Be7 {[%clk 0:02:52]} 10. Qd2 {[%clk 0:02:57]}  a6 {[%clk 0:02:52]} 11. O-O-O {[%clk 0:02:57]}  Bd7 {[%clk 0:02:52]} 12. Kb1 {[%clk 0:02:53]}  Nxd4 {[%clk 0:02:49]} 13. Qxd4 {[%clk 0:02:52]}  Bc6 {[%clk 0:02:50]} 14. Bc4 {[%clk 0:02:48]}  Qa5 {[%clk 0:02:46]} 15. h4 {[%clk 0:02:44]}  Qc5 {[%clk 0:02:45]} 16. Qxc5 {[%clk 0:02:27]}  dxc5 {[%clk 0:02:46]} 17. e5 {[%clk 0:02:27]}  Nd7 {[%clk 0:02:42]} 18. Bf4 {[%clk 0:02:10]}  O-O-O {[%clk 0:02:30]} 19. Bd3 {[%clk 0:01:53]}  Nb6 {[%clk 0:02:25]} 20. Be4 {[%clk 0:01:47]}  Rxd1+ {[%clk 0:02:24]} 21. Rxd1 {[%clk 0:01:46]}  Bxe4 {[%clk 0:02:17]} 22. Nxe4 {[%clk 0:01:42]}  Nd5 {[%clk 0:02:17]} 23. Bg5 {[%clk 0:01:40]}  f6 {[%clk 0:02:17]} 24. Bc1 {[%clk 0:01:36]}  b5 {[%clk 0:02:04]} 25. a4 {[%clk 0:01:28]}  Kc7 {[%clk 0:02:01]} 26. axb5 {[%clk 0:01:28]}  axb5 {[%clk 0:02:02]} 27. Re1 {[%clk 0:01:02]}  f5 {[%clk 0:01:55]} 28. Ng5 {[%clk 0:01:01]}  Bxg5 {[%clk 0:01:54]} 29. Bxg5 {[%clk 0:01:02]}  Ra8 {[%clk 0:01:51]} 30. c3 {[%clk 0:01:01]}  Kc6 {[%clk 0:01:51]} 31. Kc2 {[%clk 0:01:01]}  c4 {[%clk 0:01:50]} 32. Rd1 {[%clk 0:00:59]}  f4 {[%clk 0:01:43]} 33. Rd4 {[%clk 0:00:45]}  Rf8 {[%clk 0:01:32]} 34. Kd2 {[%clk 0:00:45]}  Rf5 {[%clk 0:01:32]} 35. Re4 {[%clk 0:00:45]}  Kc5 {[%clk 0:01:31]} 36. Ke2 {[%clk 0:00:43]}  Rf7 {[%clk 0:01:30]} 37. Kd2 {[%clk 0:00:33]}  Rf8 {[%clk 0:01:27]} 38. Kc2 {[%clk 0:00:32]}  Kc6 {[%clk 0:01:24]} 39. Kd2 {[%clk 0:00:32]}  Kb7 {[%clk 0:01:23]} 40. Kc2 {[%clk 0:00:33]}  Ka6 {[%clk 0:01:24]} 41. b3 {[%clk 0:00:25]}  Kb6 {[%clk 0:01:20]} 42. bxc4 {[%clk 0:00:24]}  bxc4 {[%clk 0:01:20]} 43. Kd2 {[%clk 0:00:24]}  Kc5 {[%clk 0:01:19]} 44. Kc2 {[%clk 0:00:21]}  Ra8 {[%clk 0:01:19]} 45. Bxf4 {[%clk 0:00:20]}  Ra2+ {[%clk 0:01:19]} 46. Kc1 {[%clk 0:00:20]}  Rxg2 {[%clk 0:01:18]} 47. Be3+ {[%clk 0:00:18]}  Kb5 {[%clk 0:01:09]} 48. Bd4 {[%clk 0:00:18]}  g5 {[%clk 0:01:08]} 49. hxg5 {[%clk 0:00:18]}  Rxg5 {[%clk 0:01:09]} 50. Rh4 {[%clk 0:00:18]}  Ne7 {[%clk 0:01:03]} 51. f4 {[%clk 0:00:13]}  Rf5 {[%clk 0:01:00]} 52. Be3 {[%clk 0:00:13]}  Ng6 {[%clk 0:01:00]} 53. Rh3 {[%clk 0:00:13]}  Kc6 {[%clk 0:00:59]} 54. Kd2 {[%clk 0:00:13]}  Kd5 {[%clk 0:00:59]} 55. Rf3 {[%clk 0:00:12]}  Nxe5 {[%clk 0:00:58]} 56. Rh3 {[%clk 0:00:13]}  Ng4 {[%clk 0:00:58]} 57. Bd4 {[%clk 0:00:13]}  Ke4 {[%clk 0:00:57]} 58. Rh1 {[%clk 0:00:13]}  Kxf4 {[%clk 0:00:56]} 59. Re1 {[%clk 0:00:14]}  e5 {[%clk 0:00:55]} 60. Bb6 {[%clk 0:00:14]}  h4 {[%clk 0:00:55]} 61. Bc7 {[%clk 0:00:15]}  h3 {[%clk 0:00:55]} 62. Rf1+ {[%clk 0:00:15]}  Ke4 {[%clk 0:00:55]} 63. Rg1 {[%clk 0:00:15]}  Rf4 {[%clk 0:00:52]} 64. Ke2 {[%clk 0:00:16]}  h2 {[%clk 0:00:51]} 65. Rh1 {[%clk 0:00:16]}  Rf2+ {[%clk 0:00:52]} 66. Ke1 {[%clk 0:00:16]}  Ra2 {[%clk 0:00:53]} 67. Kf1 {[%clk 0:00:14]}  Kf3 {[%clk 0:00:51]} 0-1


[Site "https://www.chess.com"]

[Event "Titled Tuesday Blitz September 20 Late 2022"]
[White "Urbina Perez, Juan Antonio"]
[Black "Hansen, Eric"]
[WhiteFideId "2217368"]
[BlackFideId "2606771"]
[WhiteElo "2197"]
[BlackElo "2568"]
[Result "0-1"]
[Round "01"]
[TimeControl "180+1"]
[Date "2022.09.20"]
[WhiteClock "0:00:11"]
[BlackClock "0:00:05"]

1. d4 {[%clk 0:02:56]}  Nf6 {[%clk 0:02:58]} 2. Nf3 {[%clk 0:02:56]}  e6 {[%clk 0:02:51]} 3. g3 {[%clk 0:02:51]}  d5 {[%clk 0:02:49]} 4. Bg2 {[%clk 0:02:49]}  Be7 {[%clk 0:02:48]} 5. O-O {[%clk 0:02:49]}  c6 {[%clk 0:02:48]} 6. c4 {[%clk 0:02:45]}  dxc4 {[%clk 0:02:48]} 7. a4 {[%clk 0:02:43]}  O-O {[%clk 0:02:39]} 8. Ne5 {[%clk 0:02:41]}  c5 {[%clk 0:02:38]} 9. dxc5 {[%clk 0:02:36]}  Bxc5 {[%clk 0:02:34]} 10. Qxd8 {[%clk 0:02:33]}  Rxd8 {[%clk 0:02:34]} 11. Nxc4 {[%clk 0:02:34]}  Nc6 {[%clk 0:02:34]} 12. Nc3 {[%clk 0:02:32]}  Bd7 {[%clk 0:02:32]} 13. Bf4 {[%clk 0:02:25]}  Be8 {[%clk 0:02:18]} 14. Rfd1 {[%clk 0:02:18]}  h6 {[%clk 0:02:05]} 15. h3 {[%clk 0:02:15]}  g5 {[%clk 0:01:42]} 16. Bc7 {[%clk 0:02:10]}  Rxd1+ {[%clk 0:01:41]} 17. Rxd1 {[%clk 0:02:08]}  Rc8 {[%clk 0:01:42]} 18. Bd6 {[%clk 0:02:07]}  Bxd6 {[%clk 0:01:02]} 19. Nxd6 {[%clk 0:02:08]}  Rb8 {[%clk 0:01:03]} 20. Ncb5 {[%clk 0:01:54]}  Bd7 {[%clk 0:00:52]} 21. Ne4 {[%clk 0:01:45]}  Nxe4 {[%clk 0:00:52]} 22. Bxe4 {[%clk 0:01:28]}  Be8 {[%clk 0:00:52]} 23. Bxc6 {[%clk 0:01:10]}  bxc6 {[%clk 0:00:51]} 24. Nd6 {[%clk 0:00:56]}  Kf8 {[%clk 0:00:51]} 25. Rc1 {[%clk 0:00:43]}  Bd7 {[%clk 0:00:50]} 26. Nc4 {[%clk 0:00:40]}  f6 {[%clk 0:00:45]} 27. Rc2 {[%clk 0:00:38]}  c5 {[%clk 0:00:42]} 28. Ne3 {[%clk 0:00:35]}  Bxa4 {[%clk 0:00:38]} 29. Rxc5 {[%clk 0:00:34]}  Rxb2 {[%clk 0:00:38]} 30. Rc7 {[%clk 0:00:33]}  Rxe2 {[%clk 0:00:24]} 31. Ng4 {[%clk 0:00:32]}  f5 {[%clk 0:00:20]} 32. Nxh6 {[%clk 0:00:23]}  a6 {[%clk 0:00:16]} 33. h4 {[%clk 0:00:22]}  gxh4 {[%clk 0:00:16]} 34. gxh4 {[%clk 0:00:23]}  Re4 {[%clk 0:00:14]} 35. Nf7 {[%clk 0:00:16]}  Rg4+ {[%clk 0:00:12]} 36. Kh2 {[%clk 0:00:14]}  Rxh4+ {[%clk 0:00:11]} 37. Kg3 {[%clk 0:00:14]}  Rg4+ {[%clk 0:00:12]} 38. Kf3 {[%clk 0:00:14]}  Ke8 {[%clk 0:00:09]} 39. Ne5 {[%clk 0:00:14]}  Bd1+ {[%clk 0:00:09]} 40. Ke3 {[%clk 0:00:12]}  Re4+ {[%clk 0:00:10]} 41. Kd2 {[%clk 0:00:13]}  Rxe5 {[%clk 0:00:10]} 42. Kxd1 {[%clk 0:00:13]}  a5 {[%clk 0:00:09]} 43. Ra7 {[%clk 0:00:13]}  Rd5+ {[%clk 0:00:06]} 44. Ke2 {[%clk 0:00:14]}  e5 {[%clk 0:00:06]} 45. f3 {[%clk 0:00:13]}  Kd8 {[%clk 0:00:06]} 46. Ke3 {[%clk 0:00:13]}  Kc8 {[%clk 0:00:06]} 47. Rf7 {[%clk 0:00:11]}  f4+ {[%clk 0:00:04]} 48. Ke2 {[%clk 0:00:11]}  Kb8 {[%clk 0:00:03]} 49. Rh7 {[%clk 0:00:09]}  a4 {[%clk 0:00:03]} 50. Rh1 {[%clk 0:00:10]}  Ra5 {[%clk 0:00:03]} 51. Ra1 {[%clk 0:00:10]}  a3 {[%clk 0:00:03]} 52. Kd3 {[%clk 0:00:10]}  a2 {[%clk 0:00:03]} 53. Kc3 {[%clk 0:00:10]}  Kc7 {[%clk 0:00:04]} 54. Kb3 {[%clk 0:00:11]}  Kd6 {[%clk 0:00:04]} 55. Rxa2 {[%clk 0:00:11]}  Rxa2 {[%clk 0:00:04]} 56. Kxa2 {[%clk 0:00:12]}  e4 {[%clk 0:00:05]} 57. fxe4 {[%clk 0:00:11]}  f3 {[%clk 0:00:05]} 0-1


[Site "https://www.chess.com"]

[Event "Titled Tuesday Blitz September 20 Late 2022"]
[White "Yi, Richard"]
[Black "Livaic, Leon"]
[WhiteFideId "2079518"]
[BlackFideId "14531534"]
[WhiteElo "2147"]
[BlackElo "2540"]
[Result "0-1"]
[Round "01"]
[TimeControl "180+1"]
[Date "2022.09.20"]
[WhiteClock "0:00:24"]
[BlackClock "0:00:39"]

1. Nf3 {[%clk 0:02:52]}  Nf6 {[%clk 0:02:59]} 2. c4 {[%clk 0:02:51]}  b6 {[%clk 0:02:59]} 3. d4 {[%clk 0:02:50]}  e6 {[%clk 0:02:59]} 4. a3 {[%clk 0:02:50]}  Bb7 {[%clk 0:02:58]} 5. Nc3 {[%clk 0:02:49]}  Ne4 {[%clk 0:02:58]} 6. Qc2 {[%clk 0:02:49]}  Nxc3 {[%clk 0:02:58]} 7. Qxc3 {[%clk 0:02:49]}  Be7 {[%clk 0:02:56]} 8. g3 {[%clk 0:02:41]}  a5 {[%clk 0:02:53]} 9. Bd2 {[%clk 0:02:30]}  O-O {[%clk 0:02:52]} 10. Bg2 {[%clk 0:02:29]}  a4 {[%clk 0:02:52]} 11. O-O {[%clk 0:02:29]}  d6 {[%clk 0:02:52]} 12. Rac1 {[%clk 0:02:25]}  Nd7 {[%clk 0:02:52]} 13. Ne1 {[%clk 0:02:14]}  Bxg2 {[%clk 0:02:52]} 14. Nxg2 {[%clk 0:02:15]}  e5 {[%clk 0:02:37]} 15. e3 {[%clk 0:02:00]}  Bf6 {[%clk 0:02:32]} 16. Qd3 {[%clk 0:01:50]}  Re8 {[%clk 0:02:27]} 17. Bc3 {[%clk 0:01:40]}  g6 {[%clk 0:02:25]} 18. Rfd1 {[%clk 0:01:31]}  Qe7 {[%clk 0:02:24]} 19. Bb4 {[%clk 0:01:27]}  exd4 {[%clk 0:02:16]} 20. exd4 {[%clk 0:01:27]}  Qe2 {[%clk 0:02:17]} 21. Rc2 {[%clk 0:01:16]}  Qxd3 {[%clk 0:02:16]} 22. Rxd3 {[%clk 0:01:17]}  Rad8 {[%clk 0:02:07]} 23. Ne3 {[%clk 0:01:17]}  c5 {[%clk 0:02:00]} 24. Bc3 {[%clk 0:01:17]}  Kg7 {[%clk 0:01:21]} 25. Kg2 {[%clk 0:01:16]}  Nb8 {[%clk 0:00:56]} 26. Nd5 {[%clk 0:01:13]}  Bxd4 {[%clk 0:00:56]} 27. Bxd4+ {[%clk 0:01:13]}  cxd4 {[%clk 0:00:56]} 28. Nxb6 {[%clk 0:01:08]}  Nc6 {[%clk 0:00:56]} 29. Nxa4 {[%clk 0:01:04]}  Re4 {[%clk 0:00:51]} 30. c5 {[%clk 0:00:58]}  Ne5 {[%clk 0:00:50]} 31. Rdd2 {[%clk 0:00:53]}  d3 {[%clk 0:00:50]} 32. Rc3 {[%clk 0:00:33]}  Rxa4 {[%clk 0:00:50]} 33. c6 {[%clk 0:00:34]}  Rc8 {[%clk 0:00:42]} 34. c7 {[%clk 0:00:33]}  Rc4 {[%clk 0:00:39]} 35. Rb3 {[%clk 0:00:23]}  R8xc7 {[%clk 0:00:39]} 36. f4 {[%clk 0:00:24]}  Rc2 {[%clk 0:00:39]} 0-1


[Site "https://www.chess.com"]

[Event "Titled Tuesday Blitz September 20 Late 2022"]
[White "Zhao, Erick"]
[Black "Vykouk, Jan"]
[WhiteFideId "30946930"]
[BlackFideId "349658"]
[WhiteElo "2465"]
[BlackElo "2352"]
[Result "1-0"]
[Round "01"]
[TimeControl "180+1"]
[Date "2022.09.20"]
[WhiteClock "0:00:55"]
[BlackClock "0:00:14"]

1. e4 {[%clk 0:03:00]}  c5 {[%clk 0:02:59]} 2. Nf3 {[%clk 0:03:00]}  d6 {[%clk 0:02:57]} 3. d4 {[%clk 0:02:59]}  cxd4 {[%clk 0:02:57]} 4. Qxd4 {[%clk 0:02:57]}  a6 {[%clk 0:02:57]} 5. e5 {[%clk 0:02:55]}  Nc6 {[%clk 0:02:56]} 6. Qa4 {[%clk 0:02:55]}  e6 {[%clk 0:02:45]} 7. Bg5 {[%clk 0:02:47]}  Qb6 {[%clk 0:02:43]} 8. Nbd2 {[%clk 0:02:41]}  d5 {[%clk 0:02:32]} 9. Be3 {[%clk 0:02:25]}  Qxb2 {[%clk 0:02:27]} 10. Rb1 {[%clk 0:02:24]}  Qa3 {[%clk 0:02:26]} 11. Qxa3 {[%clk 0:02:11]}  Bxa3 {[%clk 0:02:27]} 12. Bb6 {[%clk 0:02:11]}  Be7 {[%clk 0:02:20]} 13. c4 {[%clk 0:02:10]}  Nh6 {[%clk 0:02:15]} 14. h3 {[%clk 0:02:07]}  O-O {[%clk 0:02:12]} 15. g4 {[%clk 0:02:03]}  f5 {[%clk 0:01:33]} 16. Bd3 {[%clk 0:01:53]}  g6 {[%clk 0:01:20]} 17. gxf5 {[%clk 0:01:36]}  Nxf5 {[%clk 0:01:19]} 18. Ke2 {[%clk 0:01:37]}  dxc4 {[%clk 0:01:05]} 19. Bxc4 {[%clk 0:01:33]}  Kg7 {[%clk 0:01:05]} 20. Ne4 {[%clk 0:01:32]}  Bd7 {[%clk 0:01:02]} 21. Rhd1 {[%clk 0:01:32]}  Bc8 {[%clk 0:00:56]} 22. a4 {[%clk 0:01:16]}  a5 {[%clk 0:00:55]} 23. Nd6 {[%clk 0:01:10]}  Bxd6 {[%clk 0:00:51]} 24. exd6 {[%clk 0:01:11]}  Bd7 {[%clk 0:00:51]} 25. Bc7 {[%clk 0:01:07]}  e5 {[%clk 0:00:36]} 26. Rxb7 {[%clk 0:01:02]}  Nfd4+ {[%clk 0:00:17]} 27. Nxd4 {[%clk 0:01:03]}  Nxd4+ {[%clk 0:00:18]} 28. Rxd4 {[%clk 0:00:59]}  exd4 {[%clk 0:00:19]} 29. Bb6 {[%clk 0:00:57]}  Rae8+ {[%clk 0:00:19]} 30. Kd3 {[%clk 0:00:55]}  Rf3+ {[%clk 0:00:18]} 31. Kxd4 {[%clk 0:00:55]}  Rf4+ {[%clk 0:00:17]} 32. Kc5 {[%clk 0:00:56]}  Rc8+ {[%clk 0:00:17]} 33. Kd5 {[%clk 0:00:55]}  Rfxc4 {[%clk 0:00:14]} 34. Rxd7+ {[%clk 0:00:56]}  Kf6 {[%clk 0:00:14]} 35. Bd8+ {[%clk 0:00:55]}  Kf5 {[%clk 0:00:14]} 36. Rf7# {[%clk 0:00:55]} 1-0


[Site "https://www.chess.com"]